Cogmind - Beta 13 @@@ ROGUE MODE // 2024.05.31 @ 13:16:13 Player: GFYguy Result: Self-destructed Performance ------------- Evolutions (5) 2500 Regions Visited (12) 2400 Robots Destroyed (31) 155 Value Destroyed (1221) 1221 Prototype IDs (9) 180 Alien Tech Used (0) 0 Bonus (733) 733 TOTAL SCORE: 7189 Bonus ------- Follower Combat Kills 433 Aligned with FarCom 300 Cogmind --------- Core Integrity 803/1000 Matter 188/300 Energy 98/100 System Corruption 0% Temperature Cool (0) Movement Core (200) Ox3 Location -5/Factory Parts ------- > --- POWER (2) -------- (None) > --- PROPULSION (6) --- (None) > --- UTILITY (7) ------ Advanced Heat Sink Coolant Injector High-capacity Storage Unit Advanced Weight Redist. System Improved Melee Analysis Suite > --- WEAPON (2) ------- (None) > --- INVENTORY (20) --- Reinforced Deuterium Engine Fusion Compressor Gravmag System Humpback Energy Well (350) Large Matter Pod (11) Large Matter Pod (0) Core Analyzer Armor Integrity Analyzer Armor Integrity Analyzer Hardened Heavy Armor Plating Heart of Steel Heavy Rocket Launcher Remote Datajack Axe Peak State ------------ > --- POWER ------------ Improved Deuterium Engine Angular Momentum Engine > --- PROPULSION ------- Improved Carbon-fiber Leg Improved Carbon-fiber Leg Improved Carbon-fiber Leg Improved Carbon-fiber Leg > --- UTILITY ---------- Lightpack 2.0 Core Analyzer Hardened Heavy Armor Plating > --- WEAPON ----------- Plasma Cannon Chainsword > --- INVENTORY -------- Improved Deuterium Engine Cooled Deuterium Engine Cooled Deuterium Engine Light Angular Momentum Engine Light Angular Momentum Engine Fusion Compressor VTOL Module VTOL Module VTOL Module Improved Flight Unit Improved Flight Unit Improved Flight Unit Cesium-ion Thruster Improved Heat Sink Improved Heat Sink Coolant Injector Medium Storage Unit Humpback Compact Matter Pod Machine Analyzer Improved Targeting Computer Energy Filter Energy Filter Microactuators Microactuators ECM Suite Improved Propulsion Shielding System Shield Thief Drone Bay Heart of Steel Pulse Rifle Plasma Cannon Plasma Cannon Heavy Rocket Launcher Heavy Rocket Launcher [Rating: 89] Favorites ----------- Power Ion Engine Engine Ion Engine Propulsion Improved Flight Unit Treads Light Treads Leg Improved Carbon-fiber Leg Flight Unit Improved Flight Unit Utility Lightpack 2.0 Device Advanced Weight Redist. System Storage Lightpack 2.0 Processor Core Analyzer Protection Hardened Heavy Armor Plating Weapon Small Laser Energy Gun Small Laser Energy Cannon Plasma Cannon Ballistic Gun Improved Assault Rifle Launcher Heavy Rocket Launcher Slashing Weapon Chainsword Build | -11 -10 -10 -9 -9 -9 -8 -8 -7 -7 -7 -6 -5 ------- Run | Yrd Mat Min Mat Min Exi Min Mat Fac Low Low Fac Fac Slots Evolved 10 | . . . 2 . . . 2 2 . . 2 2 Power 1 | . . . . . . . . 1 . . . . Propulsion 4 | . . . 1 . . . 1 . . . 1 1 Utility 5 | . . . 1 . . . 1 1 . . 1 1 Weapon . | . . . . . . . . . . . . . Parts Attached 91 | 6 2 8 11 3 2 . 3 18 4 . 29 5 Power 18 | 1 . 2 . . . . 1 8 1 . 5 . Engine 18 | 1 . 2 . . . . 1 8 1 . 5 . Core . | . . . . . . . . . . . . . Reactor . | . . . . . . . . . . . . . Propulsion 19 | 2 . . 3 . . . 1 1 2 . 10 . Treads 2 | 2 . . . . . . . . . . . . Leg 7 | . . . . . . . . . . . 7 . Wheel . | . . . . . . . . . . . . . Hover . | . . . . . . . . . . . . . Flight 10 | . . . 3 . . . 1 1 2 . 3 . Utility 36 | 1 2 5 4 1 1 . 1 6 1 . 11 3 Device 24 | . 1 4 4 1 . . . 6 1 . 5 2 Storage 3 | 1 . . . . 1 . . . . . 1 . Processor 2 | . . . . . . . . . . . 2 . Hackware . | . . . . . . . . . . . . . Protection 7 | . 1 1 . . . . 1 . . . 3 1 Artifact . | . . . . . . . . . . . . . Weapon 18 | 2 . 1 4 2 1 . . 3 . . 3 2 Energy Gun 6 | 2 . 1 3 . . . . . . . . . Energy Cannon 2 | . . . . . . . . . . . 1 1 Ballistic Gun 4 | . . . 1 2 1 . . . . . . . Ballistic Cannon . | . . . . . . . . . . . . . Launcher 3 | . . . . . . . . 1 . . 1 1 Special Weapon . | . . . . . . . . . . . . . Impact Weapon . | . . . . . . . . . . . . . Slashing Weapon 3 | . . . . . . . . 2 . . 1 . Piercing Weapon . | . . . . . . . . . . . . . Special Melee Weapon . | . . . . . . . . . . . . . Unidentified Prototypes 7 | . . 2 1 . 1 . . 2 . . 1 . Parts Lost 36 | . . 3 . . . . . . 1 . 22 10 Power 7 | . . 1 . . . . . . . . 4 2 Propulsion 10 | . . . . . . . . . . . 6 4 Utility 13 | . . 1 . . . . . . 1 . 9 2 Weapon 6 | . . 1 . . . . . . . . 3 2 Highest Loss Streak 14 | . . 2 . . . . . . 1 . 14 10 To Critical Strikes . | . . . . . . . . . . . . . Average Slot Usage (%) 83 | . 96 99 84 78 68 66 72 75 76 76 78 85 Engine 12 | . 14 14 11 11 11 11 9 14 15 15 12 10 Treads 7 | . 28 28 9 . . . . . . . . . Leg 7 | . . . . . . . . . . . 18 22 Flight 14 | . . . 17 33 33 33 36 30 30 30 9 . Device 11 | . 6 11 15 22 5 . . 10 15 15 8 15 Storage 8 | . 14 14 11 11 11 11 9 7 7 7 5 5 Processor 3 | . . . . . . . . . . . 7 11 Protection 2 | . 4 1 6 . . . 9 3 . . 2 4 Energy Gun 7 | . 28 28 13 . . . . . . . . . Slashing Weapon 4 | . . . . . . . . 3 7 7 10 . Naked Turns . | . . . . . . . . . . . . . Heaviest Build 93 | 12 15 15 21 13 13 13 18 23 27 27 91 93 Greatest Support 103 | 40 40 40 40 15 15 15 19 28 28 27 103 83 Greatest Overweight (x) 4 | 1 . . 4 . . . . . . 1 1 1 Average Overweight (x) . | . . . . . . . . . . . . . Largest Inventory Capacity 40 | 8 8 8 8 8 40 40 40 40 40 40 40 20 Average Capacity 23 | 6 8 8 8 8 30 40 40 40 40 40 30 20 Most Carried 40 | 5 3 8 8 8 15 15 34 40 40 40 40 20 Average Carried 21 | 2 2 6 7 7 10 15 26 37 39 39 28 18 Final Capacity 40 | 8 8 8 8 8 40 40 40 40 40 40 20 20 Final Carried 40 | 2 3 8 8 8 15 15 34 40 40 40 20 19 Class Distribution -------------------- 38% | Mutant 30% | Hauler-Sprinter 10% | Hauler-Mutant 7% | Gladiator 7% | Scavenger-Mutant 4% | Scavenger-Gladiator Dominant Class ---------------- Mutant | -10/Materials Mutant | -10/Mines Mutant | -9/Materials Mutant | -9/Mines Hauler-Mutant | -9/Exiles Hauler-Mutant | -8/Mines Hauler-Sprinter | -8/Materials Hauler-Sprinter | -7/Factory Hauler-Sprinter | -7/Lower Caves Hauler-Mutant | -7/Lower Caves Hauler-Sprinter | -6/Factory Scavenger-Mutant | -5/Factory Resources | -11 -10 -10 -9 -9 -9 -8 -8 -7 -7 -7 -6 -5 ----------- Run | Yrd Mat Min Mat Min Exi Min Mat Fac Low Low Fac Fac Matter Collected 1577 | 203 . 134 98 78 60 . 55 193 223 . 533 . Remotely . | . . . . . . . . . . . . . Salvage Created 1474 | . . 189 115 95 . . 55 193 96 96 604 31 Parts 78 | . . 8 3 4 . . 3 8 3 7 39 3 Haulers Intercepted 3 | . . . 1 . . . 1 1 . . . . Recyclers Shooed . | . . . . . . . . . . . . . Parts Field Recycled . | . . . . . . . . . . . . . Retrieved Matter . | . . . . . . . . . . . . . Parts Self-Destructed 14 | . . . . . . . . . 11 3 . . Prevented . | . . . . . . . . . . . . . Kills | -11 -10 -10 -9 -9 -9 -8 -8 -7 -7 -7 -6 -5 ------- Run | Yrd Mat Min Mat Min Exi Min Mat Fac Low Low Fac Fac Combat Hostiles Destroyed 33 | . . 8 2 2 . . . 3 2 3 10 3 Melee 18 | . . . . . . . . 3 2 3 10 . Guns 12 | . . 8 2 2 . . . . . . . . Cannons 2 | . . . . . . . . . . . . 2 AOE 1 | . . . . . . . . . . . . 1 Classes Destroyed 11 | . . 3 1 . . . . 1 1 1 4 . Hauler 3 | . . . 1 . . . 1 1 . . . . Operator 1 | . . . . . . . . . . . 1 . Swarmer 5 | . . 2 . . . . . . 1 2 . . Grunt 12 | . . 3 2 2 . . . 2 . . 3 . Brawler 1 | . . . . . . . . . . . 1 . Duelist 1 | . . . . . . . . . . . 1 . Specialist 4 | . . . . . . . . . . . 4 . Hunter 1 | . . . . . . . . 1 . . . . Programmer 1 | . . . . . . . . . . . 1 . Assembled 6 | . . 3 . . . . . . . . . 3 Savage 1 | . . . . . . . . . 1 . . . Mutant 1 | . . . . . . . . . . 1 . . Best Kill Streak 3 | . . 2 3 2 . . 1 3 1 2 3 3 Combat Bots Only 3 | . . 2 2 2 . . . 3 1 2 3 3 Max Kills in Single Turn 2 | . . 2 1 1 . . 1 1 1 1 1 2 Gunslinging 1 | . . 1 . . . . . . . . . . Exploded 1 | . . . . . . . . . . . . 1 Melee 1 | . . . . . . . . 1 1 1 1 . Uniques/NPCs Destroyed . | . . . . . . . . . . . . . Combat | -11 -10 -10 -9 -9 -9 -8 -8 -7 -7 -7 -6 -5 -------- Run | Yrd Mat Min Mat Min Exi Min Mat Fac Low Low Fac Fac Hostile Shots Fired 203 | . 4 51 4 2 . 1 16 4 17 1 78 25 Missed 77 | . 2 14 . 2 . 1 12 4 10 1 27 4 Damage Taken 3580 | . 31 456 53 . . . 65 . 160 . 1638 1177 Core 590 | . . 31 27 . . . 18 . . . 317 197 Absorbed by Shields . | . . . . . . . . . . . . . Core Remaining (%) 89 | 100 . 87 . . . 93 96 . . 100 62 . Volleys Fired 55 | . . 22 3 3 . . 4 13 . . 1 9 Largest 2 | . . 2 2 2 . . 1 1 . . 1 2 Hottest 130 | . . 80 130 46 . . 23 23 . . 80 119 Shots Fired 91 | . . 44 6 6 . . 4 13 . . 1 17 Gun 73 | . . 44 6 6 . . 4 13 . . . . Cannon 10 | . . . . . . . . . . . 1 9 Launcher 8 | . . . . . . . . . . . . 8 Special . | . . . . . . . . . . . . . Kinetic 23 | . . . . 6 . . 4 13 . . . . Thermal 60 | . . 44 6 . . . . . . . 1 9 Explosive 8 | . . . . . . . . . . . . 8 Electromagnetic . | . . . . . . . . . . . . . Robot Hit Streak 8 | . . 8 4 4 . . 7 3 . . 4 5 Robot Miss Streak 4 | . . 3 1 1 . . . 2 . . . 4 Penetration Max . | . . . . . . . . . . . . . Secondary Targets 2 | . . 1 1 . . . . . . . . . Max Gunslinging Chain 1 | . . 1 1 . . . . . . . . . Shots Hit Robots 109 | . . 27 4 4 . . 4 12 8 4 37 9 Core Hits 64 | . . 15 4 2 . . 2 5 3 3 15 15 Critical Kills . | . . . . . . . . . . . . . Critical Parts Destroyed . | . . . . . . . . . . . . . Critical Strikes 3 | . . . . . . . . . 2 . 1 . Sever 3 | . . . . . . . . . 2 . 1 . Melee Attacks 70 | . . . . . . . . 4 9 6 51 . Impact . | . . . . . . . . . . . . . Slashing 70 | . . . . . . . . 4 9 6 51 . Piercing . | . . . . . . . . . . . . . Sneak Attacks 2 | . . . . . . . . . . 1 1 . Combat Hostiles 1 | . . . . . . . . . . 1 . . Follow-up Attacks 4 | . . . . . . . . . . . 4 . Damage Inflicted 2899 | . . 298 64 59 . . 62 288 266 177 1113 572 Guns 596 | . . 298 64 59 . . 62 113 . . . . Cannons 226 | . . . . . . . . . . . 27 199 Explosions 373 | . . . . . . . . . . . . 373 Melee 1704 | . . . . . . . . 175 266 177 1086 . Ramming . | . . . . . . . . . . . . . Kinetic 234 | . . . . 59 . . 62 113 . . . . Thermal 588 | . . 298 64 . . . . . . . 27 199 Explosive 373 | . . . . . . . . . . . . 373 Electromagnetic . | . . . . . . . . . . . . . Impact . | . . . . . . . . . . . . . Slashing 1704 | . . . . . . . . 175 266 177 1086 . Piercing . | . . . . . . . . . . . . . Highest Corruption 4 | . . . . . . . . . . . 4 . Average Corruption 4 | . . . . . . . . . . . 4 . Corruption Purged . | . . . . . . . . . . . . . Corruption Blocked . | . . . . . . . . . . . . . Effects 16 | . . . . . . . . . . . 16 . Message Errors 5 | . . . . . . . . . . . 5 . Matter Fused 3 | . . . . . . . . . . . 3 . Heat Flow Errors 3 | . . . . . . . . . . . 3 . Energy Discharges 3 | . . . . . . . . . . . 3 . Parts Fused 2 | . . . . . . . . . . . 2 . Overload Shots . | . . . . . . . . . . . . . Overflow Damage 62 | . . . . . . . . . 1 12 32 17 Projectiles 17 | . . . . . . . . . . . . 17 Explosions . | . . . . . . . . . . . . . Melee 45 | . . . . . . . . . 1 12 32 . Knockbacks . | . . . . . . . . . . . . . Impact . | . . . . . . . . . . . . . Kinetic . | . . . . . . . . . . . . . Secondary . | . . . . . . . . . . . . . Self-Inflicted Damage 114 | . . . . . . . . . . . . 114 Shots 4 | . . . . . . . . . . . . 4 Rammed . | . . . . . . . . . . . . . Targets Rammed . | . . . . . . . . . . . . . Kicked . | . . . . . . . . . . . . . Crushed . | . . . . . . . . . . . . . Highest Temperature 199 | . . 199 151 . . . 6 5 . . 183 19 Average Temperature 67 | . . 76 90 . . . 5 3 . . 66 17 Received Heat Transfer 385 | . 18 191 21 . . . 18 . 9 . 108 20 Siege Activations . | . . . . . . . . . . . . . Robots Corrupted . | . . . . . . . . . . . . . Combat Hostiles . | . . . . . . . . . . . . . Parts Fried . | . . . . . . . . . . . . . Impact Corruptions . | . . . . . . . . . . . . . Robots Melted . | . . . . . . . . . . . . . Combat Hostiles . | . . . . . . . . . . . . . Parts Melted 1 | . . 1 . . . . . . . . . . Heat Transferred 1273 | . . 675 148 . . . . . . . 50 400 Parts Sabotaged . | . . . . . . . . . . . . . Parts Stolen . | . . . . . . . . . . . . . Parts Stripped . | . . . . . . . . . . . . . Power Chain Reactions . | . . . . . . . . . . . . . Alert | -11 -10 -10 -9 -9 -9 -8 -8 -7 -7 -7 -6 -5 ------- Run | Yrd Mat Min Mat Min Exi Min Mat Fac Low Low Fac Fac Peak Influence 222 | . 22 65 126 161 . 23 185 222 . . 151 99 Initial 133 | . . 8 . 48 . . 8 84 . . 133 . Average 60 | . 7 32 48 118 . 4 69 145 . . 65 25 Maximum Alert Level 1 | . . . . . . . . 1 . . . . Low Security (%) 97 | 100 100 100 100 100 . 100 100 66 . . 100 100 Level 1 2 | . . . . . . . . 33 . . . . Level 2 . | . . . . . . . . . . . . . Level 3 . | . . . . . . . . . . . . . Level 4 . | . . . . . . . . . . . . . Level 5 . | . . . . . . . . . . . . . High Security . | . . . . . . . . . . . . . Max Security . | . . . . . . . . . . . . . Squads Dispatched 15 | . . . . . . . 3 4 . . 8 . Investigation 2 | . . . . . . . 1 1 . . . . Extermination 1 | . . . . . . . . . . . 1 . Reinforcement 9 | . . . . . . . 2 3 . . 4 . Assault . | . . . . . . . . . . . . . Garrison 3 | . . . . . . . . . . . 3 . Intercept . | . . . . . . . . . . . . . Searches Triggered . | . . . . . . . . . . . . . Construction Impeded . | . . . . . . . . . . . . . Haulers Reinforced 1 | . . . . . . . . 1 . . . . Active Scanning Responses . | . . . . . . . . . . . . . Cargo Convoy Interrupts . | . . . . . . . . . . . . . Stealth | -11 -10 -10 -9 -9 -9 -8 -8 -7 -7 -7 -6 -5 --------- Run | Yrd Mat Min Mat Min Exi Min Mat Fac Low Low Fac Fac Distress Signals 2 | . . . . . . . 2 . . . . . Communications Jammed . | . . . . . . . . . . . . . Distress Signals . | . . . . . . . . . . . . . Times Spotted 86 | . 4 12 5 4 . 3 12 7 14 3 16 6 Peak Tracking Total 17 | . 4 3 5 3 . 3 17 2 3 3 5 3 Tactical Retreats 11 | . . 2 . 2 . . 2 1 2 . 2 . Traps | -11 -10 -10 -9 -9 -9 -8 -8 -7 -7 -7 -6 -5 ------- Run | Yrd Mat Min Mat Min Exi Min Mat Fac Low Low Fac Fac Traps Triggered 3 | . . . . . . . 1 1 . . . 1 Indirectly . | . . . . . . . . . . . . . Trap Hack Attempts . | . . . . . . . . . . . . . Triggered . | . . . . . . . . . . . . . Disarmed . | . . . . . . . . . . . . . Reprogrammed . | . . . . . . . . . . . . . Reused . | . . . . . . . . . . . . . Traps Extracted . | . . . . . . . . . . . . . Installed . | . . . . . . . . . . . . . Triggered . | . . . . . . . . . . . . . Machines | -11 -10 -10 -9 -9 -9 -8 -8 -7 -7 -7 -6 -5 ---------- Run | Yrd Mat Min Mat Min Exi Min Mat Fac Low Low Fac Fac Machines Disabled 1 | . . . . . . . . . . 1 . . Max in Single Turn 1 | . . . . . . . . . . 1 . . Machines Repaired . | . . . . . . . . . . . . . Machines Dismantled . | . . . . . . . . . . . . . Machines Sabotaged . | . . . . . . . . . . . . . Overloaded Fab Kills . | . . . . . . . . . . . . . Hacking | -11 -10 -10 -9 -9 -9 -8 -8 -7 -7 -7 -6 -5 --------- Run | Yrd Mat Min Mat Min Exi Min Mat Fac Low Low Fac Fac Machines Accessed 14 | . 1 1 . . 1 . 1 3 3 . 3 1 Terminals 5 | . 1 . . . . . 1 1 . . 1 1 Fabricators 2 | . . . . . . . . 1 . . 1 . Repair Stations . | . . . . . . . . . . . . . Recycling Units 1 | . . . . . . . . . . . 1 . Scanalyzers . | . . . . . . . . . . . . . Garrison Access 1 | . . . . . . . . 1 . . . . Total Hacks 34 | . 4 1 . . 4 . 1 7 10 . 5 2 Successful 22 | . 2 1 . . 4 . 1 1 10 . 2 1 Failed 12 | . 2 . . . . . . 6 . . 3 1 Catastrophic 3 | . . . . . . . . 2 . . 1 . Database Lockouts . | . . . . . . . . . . . . . Manual 1 | . . . . . 1 . . . . . . . Terminals 13 | . 4 . . . . . 1 3 . . 3 2 Fabricators 3 | . . . . . . . . 2 . . 1 . Repair Stations . | . . . . . . . . . . . . . Recycling Units 1 | . . . . . . . . . . . 1 . Scanalyzers . | . . . . . . . . . . . . . Garrison Access 2 | . . . . . . . . 2 . . . . Terminal Hacks 21 | . 2 1 . . 4 . 1 1 10 . 1 1 Record 13 | . . . . . 4 . . . 8 . . 1 Prototype ID Bank 1 | . 1 . . . . . . . . . . . Open Door 3 | . . 1 . . . . . . 2 . . . Open DSF 1 | . . . . . . . . 1 . . . . Dispatch Records 1 | . . . . . . . . . . . 1 . Transport Status 1 | . . . . . . . 1 . . . . . Registered Components 1 | . 1 . . . . . . . . . . . Fabricator Hacks 1 | . . . . . . . . . . . 1 . Network Status 1 | . . . . . . . . . . . 1 . Repair Station Hacks . | . . . . . . . . . . . . . Recycling Unit Hacks . | . . . . . . . . . . . . . Scanalyzer . | . . . . . . . . . . . . . Garrison Access Hacks . | . . . . . . . . . . . . . Unauthorized Hacks . | . . . . . . . . . . . . . Terminals . | . . . . . . . . . . . . . Fabricators . | . . . . . . . . . . . . . Repair Stations . | . . . . . . . . . . . . . Recycling Units . | . . . . . . . . . . . . . Scanalyzers . | . . . . . . . . . . . . . Garrison Access . | . . . . . . . . . . . . . Data Cores Recovered 1 | . . . . . . . . . . . 1 . Used 1 | . . . . . . . . . . . 1 . Hacking Detections 9 | . 1 . . . . . 1 3 . . 3 1 Full Trace Events 1 | . . . . . . . . 1 . . . . Feedback Events . | . . . . . . . . . . . . . Feedback Blocked . | . . . . . . . . . . . . . Robot Schematics Acquired . | . . . . . . . . . . . . . Robots Built . | . . . . . . . . . . . . . Authchips . | . . . . . . . . . . . . . Time . | . . . . . . . . . . . . . Total Robot Build Rating . | . . . . . . . . . . . . . Part Schematics Acquired . | . . . . . . . . . . . . . Parts Built . | . . . . . . . . . . . . . Authchips . | . . . . . . . . . . . . . Time . | . . . . . . . . . . . . . Total Part Build Rating . | . . . . . . . . . . . . . Parts Repaired . | . . . . . . . . . . . . . Time . | . . . . . . . . . . . . . Parts Recycled . | . . . . . . . . . . . . . Recycled Matter . | . . . . . . . . . . . . . Retrieved Matter . | . . . . . . . . . . . . . Retrieved Components . | . . . . . . . . . . . . . Parts Scanalyzed . | . . . . . . . . . . . . . Part Schematics Acquired . | . . . . . . . . . . . . . Parts Damaged . | . . . . . . . . . . . . . Bothacking | -11 -10 -10 -9 -9 -9 -8 -8 -7 -7 -7 -6 -5 ------------ Run | Yrd Mat Min Mat Min Exi Min Mat Fac Low Low Fac Fac Used RIF Installer . | . . . . . . . . . . . . . Robots Hacked . | . . . . . . . . . . . . . Non-combat . | . . . . . . . . . . . . . Combat . | . . . . . . . . . . . . . Robot Hacks Applied . | . . . . . . . . . . . . . Relay Couplers Released . | . . . . . . . . . . . . . Fabnet Peak Effective % . | . . . . . . . . . . . . . Robots Rewired 4 | . . . . . . . . . . 4 . . Allies Hacked . | . . . . . . . . . . . . . Hacks Repelled . | . . . . . . . . . . . . . Allies | -11 -10 -10 -9 -9 -9 -8 -8 -7 -7 -7 -6 -5 -------- Run | Yrd Mat Min Mat Min Exi Min Mat Fac Low Low Fac Fac Total Allies 13 | . . . . 3 . . . 3 3 4 . . Largest Group 5 | . . . . 3 3 3 . 3 5 5 5 . Highest-Rated Group 137 | . . . . 40 40 40 . 93 137 116 116 . Highest-Rated Ally 31 | . . . . 16 16 16 . 31 31 31 31 . Total Orders 3 | . . . 3 . . . . . . . . . EXPLORE 3 | . . . 3 . . . . . . . . . Ally Attacks 108 | . . . 7 5 . 9 . 7 45 1 34 . Total Damage 1725 | . . . 25 63 . 133 . 63 719 40 682 . Kills 17 | . . . 1 3 . 1 . . 10 1 1 . Allies Corrupted 1 | . . . . . . . . . . . 1 . Allies Melted . | . . . . . . . . . . . . . Intel | -11 -10 -10 -9 -9 -9 -8 -8 -7 -7 -7 -6 -5 ------- Run | Yrd Mat Min Mat Min Exi Min Mat Fac Low Low Fac Fac Robot Analysis Total . | . . . . . . . . . . . . . Derelict Logs Recovered 6 | . . 1 . 2 . . . . 2 1 . . Drone Launches 3 | . . . 3 . . . . . . . . . Drone Recoveries 3 | . . . 3 . . . . . . . . . Exploration | -11 -10 -10 -9 -9 -9 -8 -8 -7 -7 -7 -6 -5 ------------- Run | Yrd Mat Min Mat Min Exi Min Mat Fac Low Low Fac Fac Turns Passed 4121 | 53 90 927 148 254 163 5 99 286 469 120 1202 305 Spaces Moved 4018 | 36 54 518 121 476 353 15 215 417 738 135 802 138 Core 15 | 15 . . . . . . . . . . . . Treads 622 | 21 54 518 29 . . . . . . . . . Legs 580 | . . . . . . . . . . . 442 138 Wheels . | . . . . . . . . . . . . . Hover . | . . . . . . . . . . . . . Flight 2801 | . . . 92 476 353 15 215 417 738 135 360 . Fastest Speed 25 | 50 160 160 34 34 34 34 29 28 28 28 25 120 Average Speed 67 | 115 160 160 76 34 34 34 29 28 28 28 97 134 Slowest Speed 320 | 160 160 160 320 34 34 34 29 28 28 106 190 190 Overloaded Moves . | . . . . . . . . . . . . . Propulsion Burnouts . | . . . . . . . . . . . . . Robots Hopped 7 | . . . 2 2 . . 2 1 . . . . Cave-ins Triggered . | . . . . . . . . . . . . . Exploration Rate (%) 34 | 3 14 88 23 87 70 8 29 11 83 19 10 5 Regions Visited 12 Branch Regions 6 Pre-discovered Areas 5 | . . 1 . . 1 . . . 3 . . . Known Exits Taken 1 | . . . . . . . 1 . . . . . Unknown Exits Taken 11 | 1 1 1 1 1 1 1 . 1 1 1 1 . Scrap Searched 6 | . . 3 . 1 . . . . 1 1 . . Spaces Dug . | . . . . . . . . . . . . . Terrain Destroyed 60 | . . . . . . . . . . . . 60 Melee . | . . . . . . . . . . . . . Projectile . | . . . . . . . . . . . . . AOE 60 | . . . . . . . . . . . . 60 Terrain Rammed . | . . . . . . . . . . . . . Walls Destroyed . | . . . . . . . . . . . . . Machines Disabled . | . . . . . . . . . . . . . Actions | -11 -10 -10 -9 -9 -9 -8 -8 -7 -7 -7 -6 -5 --------- Run | Yrd Mat Min Mat Min Exi Min Mat Fac Low Low Fac Fac Total 5230 | 47 57 572 170 562 397 14 244 567 989 210 1161 240 Wait 764 | . . 10 19 74 27 . 1 83 221 26 217 86 Move 3992 | 35 53 517 116 471 352 14 210 414 737 134 801 138 Hop 7 | . . . 2 2 . . 2 1 . . . . Pick Up 135 | 6 2 11 5 3 10 . 24 21 9 1 43 . Fast Attach 12 | 2 . . 4 . 1 . . . 1 . 3 1 Attach 44 | 4 1 3 3 2 1 . 2 8 1 . 15 4 Detach 18 | . . . 5 2 . . . 4 . . 5 2 Swap 35 | . 1 5 4 1 . . 1 10 2 . 11 . Drop 60 | . . 4 9 4 6 . . 9 9 1 18 . Fire 55 | . . 22 3 3 . . 4 13 . . 1 9 Melee 66 | . . . . . . . . 4 9 6 47 . Ram . | . . . . . . . . . . . . . Kick . | . . . . . . . . . . . . . Crush . | . . . . . . . . . . . . . Escape Stasis . | . . . . . . . . . . . . . Rewire 42 | . . . . . . . . . . 42 . . Trap . | . . . . . . . . . . . . . Miscellaneous . | . . . . . . . . . . . . . Route ------- -11/Scrapyard -10/Materials -10/Mines -9/Materials -9/Mines -9/Exiles -8/Mines -8/Materials (discovered 2 exits: *Fac x2) -7/Factory -7/Lower Caves -7/Lower Caves -6/Factory -5/Factory History --------- Turn | Location | Event 24 | -11/Scrapyard | Discovered new exit (range 16) 54 | -11/Scrapyard | Entered Materials 64 | -10/Materials | Discovered new exit (range 16) 144 | -10/Materials | Entered Mines 215 | -10/Mines | Assembled infested the area 217 | -10/Mines | Found the Drone Emporium 224 | -10/Mines | Found Prototype Device 225 | -10/Mines | Identified Thief Drone Bay 305 | -10/Mines | Build established: Mutant 678 | -10/Mines | Found a damaged Exp. Sensor Array with a note attached 682 | -10/Mines | Found Prototype Device 724 | -10/Mines | Learned location of Storage (-7) 983 | -10/Mines | Identified Exp. Sensor Array 1055 | -10/Mines | Discovered new exit (range 11) 1071 | -10/Mines | Entered Materials 1071 | -9/Materials | Evolved 2 slots: Propulsion x1, Utility x1 1216 | -9/Materials | Discovered new exit (range 9) 1219 | -9/Materials | Entered Mines 1220 | -9/Mines | Met a Derelict bent on vengeance 1296 | -9/Mines | Assisted by bots powering up and referring to "LRC-V3" 1316 | -9/Mines | Learned Materials emergency access door positions 1446 | -9/Mines | Deemed a non-threat by the Exiles lab entrance 1446 | -9/Mines | Discovered new exit (range 5) 1473 | -9/Mines | Entered Exiles 1473 | -9/Exiles | Accompanied by 3 allies 1482 | -9/Exiles | Met 8R-AWN 1489 | -9/Exiles | Met EX-HEX 1499 | -9/Exiles | Met EX-BIN 1504 | -9/Exiles | Aligned with FarCom system 1504 | -9/Exiles | Given EX-Vault access code 1513 | -9/Exiles | Opened EX-Vault 1519 | -9/Exiles | Found Prototype Storage 1519 | -9/Exiles | Identified Lightpack 2.0 1539 | -9/Exiles | Exiles lab attacked by MAIN.C 1574 | -9/Exiles | Learned location of Zion (-7) 1615 | -9/Exiles | Discovered new exit (range 12) 1636 | -9/Exiles | Left Exiles lab with Lightpack 2.0 1636 | -9/Exiles | Entered Mines 1636 | -8/Mines | Accompanied by 3 allies 1640 | -8/Mines | Discovered new exit (range 5) 1641 | -8/Mines | Entered Materials 1641 | -8/Materials | Evolved 2 slots: Propulsion x1, Utility x1 1642 | -8/Materials | Identified exit to Factory 1730 | -8/Materials | Discovered exit to Factory (range 10) 1740 | -8/Materials | Entered Factory 1740 | -7/Factory | Evolved 2 slots: Power x1, Utility x1 1848 | -7/Factory | Allied Derelicts emerged from ambush trap array 1953 | -7/Factory | Build established: Hauler-Sprinter 1999 | -7/Factory | Discovered new exit (range 15) 2026 | -7/Factory | Entered Lower Caves 2026 | -7/Lower Caves | Accompanied by 3 allies 2080 | -7/Lower Caves | Learned location of Armory (-3) 2080 | -7/Lower Caves | Learned Armory stockpile data 2080 | -7/Lower Caves | Learned Research garrison access intel 2080 | -7/Lower Caves | Learned Extension garrison access intel 2080 | -7/Lower Caves | A Commander dispatched an escort 2255 | -7/Lower Caves | Encountered a Warlord checkpoint 2321 | -7/Lower Caves | Learned location of Extension (-6) 2408 | -7/Lower Caves | Found Prototype Device 2435 | -7/Lower Caves | Learned Factory terminal intel 2472 | -7/Lower Caves | Discovered new exit (range 8) 2495 | -7/Lower Caves | Entered another Lower Caves area 2495 | -7/Lower Caves | Accompanied by 3 allies 2496 | -7/Lower Caves | Commander's escort returned to base 2588 | -7/Lower Caves | Discovered new exit (range 7) 2589 | -7/Lower Caves | Learned Factory emergency access door positions 2615 | -7/Lower Caves | Entered Factory 2615 | -6/Factory | Accompanied by 5 allies 2615 | -6/Factory | Evolved 2 slots: Propulsion x1, Utility x1 2617 | -6/Factory | Loaded intel: 28 terminal locations 2910 | -6/Factory | Discovered new exit (range 3) 2911 | -6/Factory | Garrison activated, responded to threat 2964 | -6/Factory | Lost 4 parts (1p2n1u) 2976 | -6/Factory | Lost 3 allies 3260 | -6/Factory | Lost 14 parts (2p2n8u2w) 3300 | -6/Factory | Identified Heart of Steel 3817 | -6/Factory | Entered another Factory area 3817 | -5/Factory | Evolved 2 slots: Propulsion x1, Utility x1 3982 | -5/Factory | Assembled infested ambush trap array 4108 | -5/Factory | Build established: Scavenger-Mutant 4122 | -5/Factory | Self-destructed Last Messages --------------- The unstable cave ceiling collapses. K-01 Serf collects debris. Imp. Carbon-fiber Leg destroyed. Lgt. Angular Momentum Engine destroyed. M-28 Smith destroyed. Imp. Carbon-fiber Leg destroyed. K-01 Serf collects debris. The unstable cave ceiling collapses. Imp. Carbon-fiber Leg destroyed. Hrd. Medium Armor Plating destroyed. Destroyed Shock Absorption System. Plasma Cannon destroyed. Destroyed Plasma Cannon. Hvy. Rocket Launcher destroyed. K-01 Serf collects debris. Lgt. Angular Momentum Engine destroyed. Flexi-carbon Leg destroyed. U-05 Engineer builds a Wall. The unstable cave ceiling collapses. Core Analyzer destroyed. Map ----- +----------------------------------------------------+ | ?????????????????????????????????????????????????? | | ?????????????????????????????????????????????????? | | ?????????????????????????????????????????????????? | | ?????????????????????????????????????????????????? | | ??????????????????????????????#################### | | ??????????????????????????? | | ????????????????????????? | | ????????????????????????# | | ????????????????????????# | | ????????????????????????# | | ????????????????????????# #????####### | | ????????????????????????# #????# | | ????????????????????????# #????# | | ??????????????????? ????+ #???## | | ??????????????????""????# ##### [% [ | | ???????????????# """ ???# # *%! | | ???????????????# """ ???# # ] u!! # | | ????????????? ?# ??# # # % ##### | | ????????????## ## ### # !# #???? | | ???????????? t + # ####???? | | ???????????? # ! # ##??????? | | ??????????? #######???????? | | ??????????? #?????????????? | | ?????????? ###???????????? | | ????????????# #???????????# | | ?????????? @ d #??????????# | | ???????????S ! d ##??????????# | | ???????????"" # #??????????# | | ????????????" ""???# #??????????# | | ????????????????????# #??????????# | | ????????????????????## ##??????????# | | ?????????????????????# k # ##???????????# | | ?????????????????????# #?#????????????# | | ?????????????????????# #??????????????# | | ?????????????????????# #??????????????# | | ?????????????????????# #??????????????# | | ?????????????????????# #??????????????# | | ?????????????????????##############??????????????# | | ?????????????????????????????????????????????????? | | ?????????????????????????????????????????????????? | | ?????????????????????????????????????????????????? | | ?????????????????????????????????????????????????? | | ?????????????????????????????????????????????????? | | ?????????????????????????????????????????????????? | | ?????????????????????????????????????????????????? | | ?????????????????????????????????????????????????? | | ?????????????????????????????????????????????????? | | ?????????????????????????????????????????????????? | | ?????????????????????????????????????????????????? | | ?????????????????????????????????????????????????? | +----------------------------------------------------+ Best States ------------- Heat Dissipation 59 Coolant Potential 65 Energy Generation 31 Energy Capacity 490 Matter Stores 300 Matter Capacity 300 Sight Range 16 Terrain Scan Density 10 ECM Strength 1 Additional Mass Support 9 Armor Coverage 600 Melee Speed Boost 20 Evasion (%) 72 Melee Accuracy 6 Core Analysis 6 Recoil Reduction 2 Item Schematics ----------------- None Robot Schematics ------------------ None Fabricated ------------ Nothing Alien Tech Used ----------------- None Achievements -------------- Leap Before You Look Packrat Challenges ------------ None Game ------ Seed ModifiedSensorScanner Manual? 0 Play Time 01:03:53 Cumulative 30.1 hours Start 2024.05.29 @ 11:35:13 End 2024.05.31 @ 13:16:13 Sessions 3 Manual Loads 0 Difficulty Rogue Special Mode None Game No. 45 Rogue 45 Adventurer 0 Explorer 0 Win Type - Total 0 Types 0/0/0/0/0/0/0/0/0 Lore% 19 Gallery% 31 Achievement% 22 Wizard Run 0 Options --------- Layout 1 ASCII 0 Keyboard 0 Movement Mouse Keybinds 0 Fullscreen 2 Font 24/Smallcaps Map View 50x35 Zoom Use 0% Tactical HUD 0 Map Filters NONE Filters NONE Steam 1 RUN: 24dfdc58-3c4a-408a-ad4c-5add7eb38956